fUSD/lending_fUSD_20250608
["ID","MTS","AMOUNT","RATE_DAILY","PERIOD"]
[364955307,1749350914316,-505.6035309,0.00019342,2]
[364955308,1749350914338,-480.0,0.00019342,2]
[364955309,1749350914359,-480.0,0.00019342,2]
[364955310,1749350914382,-480.0,0.00019342,2]
[364955311,1749350914403,-480.0,0.00019342,2]
[364955312,1749350914424,-480.0,0.00019342,2]
[364955313,1749350914445,-480.0,0.00019342,2]
[364955314,1749350914466,-484.18098099,0.00019342,2]
[364955315,1749350914488,-480.0,0.00019342,2]
[364955316,1749350914511,-480.0,0.00019342,2]
[364955317,1749350914532,-484.94830006,0.00019342,2]
[364955318,1749350914553,-426.10423398,0.00019342,2]
[364955319,1749350914574,-480.0,0.00019342,2]
[364955320,1749350914595,-480.0,0.00019342,2]
[364955321,1749350914617,-416.03581743,0.00019342,2]
[364955322,1749350914639,-480.0,0.00019342,2]
[364955323,1749350914660,-480.0,0.00019342,2]
[364955324,1749350914682,-320.33743144,0.00019342,2]
[364955325,1749350914703,-480.0,0.00019342,2]
[364955326,1749350914724,-447.20195697,0.00019342,2]
[364955327,1749350914747,-480.0,0.00019342,2]
[364955328,1749350914770,-480.0,0.00019342,2]
[364955329,1749350914791,-480.0,0.00019342,2]
[364955330,1749350914812,-480.0,0.00019342,2]
[364955331,1749350914833,-480.0,0.00019342,2]
[364955332,1749350914854,-480.0,0.00019342,2]
[364955333,1749350914876,-300.0,0.00019342,2]
[364955334,1749350914898,-189.45555588,0.00019342,2]
[364955335,1749350914919,-480.0,0.00019342,2]
[364955336,1749350914940,-480.0,0.00019342,2]
[364955337,1749350914962,-487.17069264,0.00019342,2]
[364955338,1749350914983,-480.0,0.00019342,2]
[364955339,1749350915005,-480.0,0.00019342,2]
[364955340,1749350915026,-480.0,0.00019342,2]
[364955341,1749350915046,-480.0,0.00019342,2]
[364955342,1749350915071,-348.68647951,0.00019342,2]
[364955343,1749350915091,-480.0,0.00019342,2]
[364955344,1749350915113,-480.0,0.00019342,2]
[364955345,1749350915135,-480.0,0.00019342,2]
[364955346,1749350915157,-480.0,0.00019342,2]
[364955347,1749350915178,-480.0,0.00019342,2]
[364955348,1749350915199,-572.2680474,0.00019342,2]
[364955349,1749350915221,-480.0,0.00019342,2]
[364955350,1749350915243,-480.0,0.00019342,2]
[364955351,1749350915264,-514.51152477,0.00019342,2]
[364955352,1749350915286,-480.0,0.00019342,2]
[364955353,1749350915308,-480.0,0.00019342,2]
[364955354,1749350915330,-464.64377552,0.00019342,2]
[364955355,1749350915352,-480.0,0.00019342,2]
[364955356,1749350915375,-480.0,0.00019342,2]
[364955357,1749350915397,-480.0,0.00019342,2]
[364955358,1749350915420,-480.0,0.00019342,2]
[364955359,1749350915442,-498.93934307,0.00019342,2]
[364955360,1749350915464,-480.0,0.00019342,2]
[364955361,1749350915486,-480.0,0.00019342,2]
[364955362,1749350915507,-480.0,0.00019342,2]
[364955363,1749350915529,-514.64330389,0.00019342,2]
[364955364,1749350915550,-480.0,0.00019342,2]
[364955365,1749350915572,-480.0,0.00019342,2]
[364955366,1749350915593,-480.0,0.00019342,2]
[364955367,1749350915614,-480.72653695,0.00019342,2]
[364955368,1749350915635,-480.0,0.00019342,2]
[364955369,1749350915657,-498.00188254,0.00019342,2]
[364955370,1749350915679,-495.68574787,0.00019342,2]
[364955371,1749350915701,-480.0,0.00019342,2]
[364955372,1749350915722,-480.0,0.00019342,2]
[364955373,1749350915743,-480.0,0.00019342,2]
[364955374,1749350915766,-520.4876519,0.00019342,2]
[364955375,1749350915788,-480.0,0.00019342,2]
[364955376,1749350915809,-480.0,0.00019342,2]
[364955377,1749350915832,-480.0,0.00019342,2]
[364955378,1749350915854,-480.0,0.00019342,2]
[364955379,1749350915877,-482.08713003,0.00019342,2]
[364955380,1749350915899,-512.89419468,0.00019342,2]
[364955381,1749350915921,-480.0,0.00019342,2]
[364955382,1749350915943,-480.0,0.00019342,2]
[364955383,1749350915965,-480.0,0.00019342,2]
[364955384,1749350915986,-480.0,0.00019342,2]
[364955385,1749350916010,-480.0,0.00019342,2]
[364955386,1749350916033,-480.0,0.00019342,2]
[364955387,1749350916059,-480.0,0.00019342,2]
[364955388,1749350916082,-480.0,0.00019342,2]
[364955389,1749350916104,-480.0,0.00019342,2]
[364955390,1749350916126,-480.0,0.00019342,2]
[364955391,1749350916150,-480.0,0.00019342,2]
[364955392,1749350916175,-404.95038116,0.00019342,2]
[364955393,1749350916197,-480.0,0.00019342,2]
[364955394,1749350916220,-480.0,0.00019342,2]
[364955395,1749350916243,-480.0,0.00019342,2]
[364955396,1749350916267,-480.0,0.00019342,2]
[364955397,1749350916290,-480.0,0.00019342,2]
[364955398,1749350916313,-239.4592661,0.00019342,2]
[364955399,1749350916334,-480.0,0.00019342,2]
[364955400,1749350916358,-480.0,0.00019342,2]
[364955401,1749350916381,-515.32101328,0.00019342,2]
[364955402,1749350916406,-480.0,0.00019342,2]
[364955403,1749350916430,-509.64480347,0.00019342,2]
[364955404,1749350916454,-480.0,0.00019342,2]
[364955405,1749350916478,-570.28147355,0.00019342,2]
[364955406,1749350916504,-480.0,0.00019342,2]
[364955407,1749350916527,-480.0,0.00019342,2]
[364955408,1749350916550,-480.0,0.00019342,2]
[364955409,1749350916573,-480.0,0.00019342,2]
[364955410,1749350916598,-480.0,0.00019342,2]
[364955411,1749350916624,-480.0,0.00019342,2]
[364955412,1749350916648,-480.0,0.00019342,2]
[364955413,1749350916672,-480.0,0.00019342,2]
[364955414,1749350916696,-603.06122557,0.00019342,2]
[364955415,1749350916719,-480.0,0.00019342,2]
[364955416,1749350916740,-480.0,0.00019342,2]
[364955417,1749350916762,-480.0,0.00019342,2]
[364955418,1749350916797,-522.94193023,0.00019342,2]
[364955419,1749350916824,-480.0,0.00019342,2]
[364955420,1749350917076,-480.0,0.00019342,2]
[364955421,1749350917101,-480.0,0.00019342,2]
[364955422,1749350917124,-480.0,0.00019342,2]
[364955423,1749350917146,-159.95,0.00019342,2]
[364955424,1749350917167,-480.0,0.00019342,2]
[364955425,1749350917198,-480.0,0.00019342,2]
[364955426,1749350917223,-480.0,0.00019342,2]
[364955427,1749350917247,-363.74355371,0.00019342,2]
[364955428,1749350917270,-480.0,0.00019342,2]
[364955429,1749350917293,-480.0,0.00019342,2]
[364955430,1749350917316,-480.0,0.00019342,2]
[364955431,1749350917338,-796.79,0.00019342,2]
[364955432,1749350917359,-480.0,0.00019342,2]
[364955433,1749350917381,-480.0,0.00019342,2]
[364955434,1749350917402,-480.0,0.00019342,2]
[364955435,1749350917423,-608.57,0.00019342,2]
[364955436,1749350917443,-480.0,0.00019342,2]
[364955437,1749350917470,-480.0,0.00019342,2]
[364955438,1749350917492,-480.0,0.00019342,2]
[364955439,1749350917514,-1071.78,0.00019342,2]
[364955440,1749350917536,-480.0,0.00019342,2]
[364955441,1749350917558,-480.0,0.00019342,2]
[364955442,1749350917583,-480.0,0.00019342,2]
[364955443,1749350917603,-480.0,0.00019342,2]
[364955444,1749350917626,-480.0,0.00019342,2]
[364955445,1749350917648,-480.0,0.00019342,2]
[364955446,1749350917669,-634.48,0.00019342,2]
[364955447,1749350917701,-1113.94,0.00019342,2]
[364955448,1749350917725,-480.0,0.00019342,2]
[364955449,1749350917749,-480.0,0.00019342,2]
[364955450,1749350917774,-508.12962773,0.00019342,2]
[364955451,1749350917798,-480.0,0.00019342,2]
[364955452,1749350917821,-480.0,0.00019342,2]
[364955453,1749350917844,-480.0,0.00019342,2]
[364955454,1749350917867,-480.0,0.00019342,2]
[364955455,1749350917897,-480.0,0.00019342,2]
[364955456,1749350917921,-480.0,0.00019342,2]
[364955457,1749350917945,-2038.5,0.00019342,2]
[364955458,1749350917967,-480.0,0.00019342,2]
[364955459,1749350917993,-524.7,0.00019342,2]
[364955460,1749350918014,-1265.9,0.00019342,2]
[364955461,1749350918036,-480.0,0.00019342,2]
[364955462,1749350918061,-480.0,0.00019342,2]
[364955463,1749350918083,-480.0,0.00019342,2]
[364955464,1749350918104,-217.11337275,0.00019342,2]
[364955465,1749350918126,-388.17,0.00019342,2]
[364955466,1749350918147,-5974.22,0.00019342,2]
[364955467,1749350918171,-480.0,0.00019342,2]
[364955468,1749350918192,-189.5,0.00019342,2]
[364955469,1749350918220,-480.0,0.00019342,2]
[364955470,1749350918241,-1168.01,0.00019342,2]
[364955471,1749350918263,-480.0,0.00019342,2]
[364955472,1749350918285,-480.0,0.00019342,2]
[364955473,1749350918307,-480.0,0.00019342,2]
[364955474,1749350918331,-1677.48,0.00019342,2]
[364955475,1749350918353,-480.0,0.00019342,2]
[364955476,1749350918375,-480.0,0.00019342,2]
[364955477,1749350918398,-480.0,0.00019342,2]
[364955478,1749350918422,-480.0,0.00019342,2]
[364955479,1749350918444,-460.0,0.00019342,2]
[364955480,1749350918466,-480.0,0.00019342,2]
[364955481,1749350918490,-480.0,0.00019342,2]
[364955482,1749350918512,-498.30981688,0.00019342,2]
[364955483,1749350918534,-480.0,0.00019342,2]
[364955484,1749350918556,-462.92529767,0.00019342,2]
[364955485,1749350918579,-480.0,0.00019342,2]
[364955486,1749350918602,-480.0,0.00019342,2]
[364955487,1749350918624,-480.0,0.00019342,2]
[364955488,1749350918646,-480.0,0.00019342,2]
[364955489,1749350918669,-480.0,0.00019342,2]
[364955490,1749350918692,-480.0,0.00019342,2]
[364955491,1749350918714,-480.0,0.00019342,2]
[364955492,1749350918737,-480.0,0.00019342,2]
[364955493,1749350918762,-454.77944032,0.00019342,2]
[364955494,1749350918786,-480.0,0.00019342,2]
[364955495,1749350918809,-480.0,0.00019342,2]
[364955496,1749350918831,-480.0,0.00019342,2]
[364955497,1749350918854,-480.0,0.00019342,2]
[364955498,1749350918878,-480.0,0.00019342,2]
[364955499,1749350918902,-480.0,0.00019342,2]
[364955500,1749350918925,-480.0,0.00019342,2]
[364955501,1749350918948,-480.0,0.00019342,2]
[364955502,1749350918970,-480.0,0.00019342,2]
[364955503,1749350918992,-1075.14,0.00019342,2]
[364955504,1749350919014,-480.0,0.00019342,2]
[364955505,1749350919037,-480.0,0.00019342,2]
[364955506,1749350919062,-480.0,0.00019342,2]
[364955507,1749350919083,-480.0,0.00019342,2]
[364955508,1749350919106,-480.0,0.00019342,2]
[364955509,1749350919129,-480.0,0.00019342,2]
[364955510,1749350919152,-480.0,0.00019342,2]
[364955511,1749350919175,-480.0,0.00019342,2]
[364955512,1749350919196,-849.84,0.00019342,2]
[364955513,1749350919219,-480.0,0.00019342,2]
[364955514,1749350919241,-205.0316586,0.00019342,2]
[364955515,1749350919263,-480.0,0.00019342,2]
[364955516,1749350919286,-480.0,0.00019342,2]
[364955517,1749350919307,-519.39,0.00019342,2]
[364955518,1749350919330,-480.0,0.00019342,2]
[364955519,1749350919353,-480.0,0.00019342,2]
[364955520,1749350919384,-480.0,0.00019342,2]
[364955521,1749350919414,-809.6,0.00019342,2]
[364955522,1749350919436,-480.0,0.00019342,2]
[364955523,1749350919459,-332.26,0.00019342,2]
[364955524,1749350919486,-3083.56,0.00019342,2]
[364955525,1749350919510,-480.0,0.00019342,2]
[364955526,1749350919534,-480.0,0.00019342,2]
[364955527,1749350919559,-480.0,0.00019342,2]
[364955528,1749350919582,-480.66948262,0.00019342,2]
[364955529,1749350919606,-6758.72,0.00019342,2]
[364955530,1749350919631,-480.0,0.00019342,2]
[364955531,1749350919656,-705.97,0.00019342,2]
[364955532,1749350919679,-480.0,0.00019342,2]
[364955533,1749350919702,-480.0,0.00019342,2]
[364955534,1749350919725,-480.0,0.00019342,2]
[364955535,1749350919748,-480.0,0.00019342,2]
[364955536,1749350919771,-480.0,0.00019342,2]
[364955537,1749350919795,-480.0,0.00019342,2]
[364955538,1749350919819,-480.0,0.00019342,2]
[364955539,1749350919843,-480.0,0.00019342,2]
[364955540,1749350919867,-480.0,0.00019342,2]
[364955541,1749350919896,-480.0,0.00019342,2]
[364955542,1749350919922,-747.62,0.00019342,2]
[364955543,1749350919948,-480.0,0.00019342,2]
[364955544,1749350919972,-648.61,0.00019342,2]
[364955545,1749350919996,-480.0,0.00019342,2]
[364955546,1749350920019,-480.0,0.00019342,2]
[364955547,1749350920042,-481.52449714,0.00019342,2]
[364955548,1749350920067,-7559.853785,0.00019342,2]
[364955549,1749350920088,-480.0,0.00019342,2]
[364955550,1749350920111,-480.0,0.00019342,2]
[364955551,1749350920133,-480.0,0.00019342,2]
[364955552,1749350920157,-480.0,0.00019342,2]
[364955553,1749350920181,-480.0,0.00019342,2]
[364955554,1749350920204,-480.0,0.00019342,2]
[364955555,1749350920232,-480.0,0.00019342,2]
[364955556,1749350920253,-730.1,0.00019342,2]
[364955557,1749350920278,-1186.32,0.00019342,2]
[364955558,1749350920303,-162.473877,0.00019342,2]
[364955559,1749350920327,-160.857376,0.00019342,2]
[364955560,1749350920353,-1395.92,0.00019342,2]
[364955561,1749350920377,-690.3,0.00019342,2]
[364955562,1749350920400,-480.0,0.00019342,2]
[364955563,1749350920424,-480.0,0.00019342,2]
[364955564,1749350920446,-480.0,0.00019342,2]
[364955565,1749350920470,-480.0,0.00019342,2]
[364955566,1749350920492,-480.0,0.00019342,2]
[364955567,1749350920516,-480.0,0.00019342,2]
[364955568,1749350920538,-480.0,0.00019342,2]
[364955569,1749350920561,-480.0,0.00019342,2]
[364955570,1749350920585,-480.0,0.00019342,2]
[364955571,1749350920607,-1521.71,0.00019342,2]
[364955572,1749350920632,-2435.99,0.00019342,2]
[364955573,1749350920655,-480.0,0.00019342,2]
[364955574,1749350920678,-480.0,0.00019342,2]
[364955575,1749350920700,-7506.504717,0.00019342,2]
[364955576,1749350920728,-598.00294636,0.00019342,2]
[364955577,1749350920750,-608.87998995,0.00019342,2]
[364955578,1749350920772,-480.0,0.00019342,2]
[364955579,1749350920796,-839.1,0.00019342,2]
[364955580,1749350920818,-480.0,0.00019342,2]
[364955581,1749350920841,-480.0,0.00019342,2]
[364955582,1749350920863,-480.0,0.00019342,2]
[364955583,1749350920885,-480.0,0.00019342,2]
[364955584,1749350920908,-480.0,0.00019342,2]
[364955585,1749350920930,-667.96,0.00019342,2]
[364955586,1749350920951,-486.91302885,0.00019342,2]
[364955587,1749350920973,-480.0,0.00019342,2]
[364955588,1749350920995,-1000.0,0.00019342,2]
[364955589,1749350921019,-281.370618,0.00019342,2]
[364955590,1749350921041,-480.0,0.00019342,2]
[364955591,1749350921067,-480.0,0.00019342,2]
[364955592,1749350921090,-480.0,0.00019342,2]
[364955593,1749350921113,-480.0,0.00019342,2]
[364955594,1749350921347,-480.0,0.00019342,2]
[364955595,1749350921408,-551.84130076,0.00019342,2]
[364955596,1749350921430,-480.0,0.00019342,2]
[364955597,1749350921451,-480.0,0.00019342,2]
[364955598,1749350921474,-480.0,0.00019342,2]
[364955599,1749350921495,-480.0,0.00019342,2]
[364955600,1749350921517,-505.51013142,0.00019342,2]
[364955601,1749350921540,-155.98209214,0.00019342,2]
[364955602,1749350921562,-480.0,0.00019342,2]
[364955603,1749350921584,-480.0,0.00019342,2]
[364955604,1749350921605,-480.0,0.00019342,2]
[364955605,1749350921626,-202.37,0.00019342,2]
[364955606,1749350921650,-2966.12,0.00019342,2]
[364955607,1749350921672,-480.0,0.00019342,2]
[364955608,1749350921694,-480.0,0.00019342,2]
[364955609,1749350921716,-502.00961233,0.00019373,2]
[364955610,1749350921736,-500.0,0.00019373,2]
[364955611,1749350921771,-151.37467174,0.00019388,2]
[364955612,1749350921796,-7419.30053996,0.000194,2]
[364955613,1749350921821,-2400.0,0.000194,7]
[364955614,1749350921847,-5561.34748634,0.00019406,2]
[364955615,1749350921871,-5561.3474863,0.00019461,2]
[364955616,1749350921895,-163.89432345,0.00019461,2]
[364955617,1749350921918,-151.37467174,0.00019461,2]
[364955618,1749350921940,-151.0,0.00019494,2]
[364955619,1749350921963,-2030.29667201,0.00019494,2]
[364955620,1749350921988,-923.18889211,0.00019494,2]
[364955621,1749350922012,-578.13310369,0.00019494,2]
[364955622,1749350922037,-207.4,0.00019494,2]
[364955623,1749350922064,-3000.0,0.000195,7]
[364955624,1749350922087,-500.0,0.00019505,2]
[364955625,1749350922110,-500.0,0.00019505,2]
[364955626,1749350922133,-1573.76,0.00019505,2]
[364955627,1749350922156,-1573.76,0.00019505,2]
[364955628,1749350922177,-500.0,0.00019505,2]
[364955629,1749350922203,-500.0,0.00019505,2]
[364955630,1749350922230,-500.0,0.00019505,2]
[364955631,1749350922255,-500.0,0.00019505,2]
[364955632,1749350922279,-480.0,0.00019506,2]
[364955633,1749350922302,-480.0,0.00019506,2]
[364955634,1749350922326,-480.0,0.00019506,2]
[364955635,1749350922351,-480.0,0.00019506,2]
[364955636,1749350922375,-480.0,0.00019506,2]
[364955637,1749350922397,-480.0,0.00019506,2]
[364955638,1749350922422,-507.81763226,0.00019506,2]
[364955639,1749350922447,-480.0,0.00019506,2]
[364955640,1749350922469,-480.0,0.00019506,2]
[364955641,1749350922491,-346.4439588,0.00019506,2]
[364955645,1749350952583,-480.0,0.00019178,2]
[364955646,1749350952604,-636.22,0.00019178,2]
[364955647,1749350952624,-380.0,0.00019178,2]
[364955648,1749350952644,-480.0,0.00019178,2]
[364955649,1749350952664,-384.51173014,0.00019178,2]
[364955650,1749350952685,-460.0,0.00019178,2]
[364955651,1749350952704,-470.24238461,0.00019178,2]
[364955652,1749350952725,-480.0,0.00019178,2]
[364955653,1749350952746,-5096.33,0.00019178,2]
[364955654,1749350952766,-383.28441536,0.00019178,2]
[364955655,1749350952789,-368.35625801,0.00019178,2]
[364955656,1749350952809,-480.0,0.00019178,2]
[364955657,1749350952830,-480.0,0.00019178,2]
[364955658,1749350952850,-480.0,0.00019178,2]
[364955659,1749350952870,-460.0,0.00019178,2]
[364955660,1749350952891,-480.0,0.00019178,2]
[364955661,1749350952912,-480.0,0.00019178,2]
[364955662,1749350952932,-399.97254403,0.00019178,2]
[364955663,1749350952952,-480.0,0.00019178,2]
[364955664,1749350952971,-467.28173047,0.00019178,2]
[364955665,1749350952991,-409.14689411,0.00019178,2]
[364955666,1749350953013,-480.0,0.00019178,2]
[364955667,1749350953033,-480.0,0.00019178,2]
[364955668,1749350953053,-480.0,0.00019178,2]
[364955669,1749350953073,-480.0,0.00019178,2]
[364955670,1749350953094,-397.95709083,0.00019178,2]
[364955671,1749350953116,-480.0,0.00019178,2]
[364955672,1749350953135,-171.84406393,0.00019178,2]
[364955673,1749350953156,-480.0,0.00019178,2]
[364955674,1749350953176,-480.0,0.00019178,2]
[364955675,1749350953199,-480.0,0.00019178,2]
[364955676,1749350953221,-480.0,0.00019178,2]
[364955677,1749350953242,-500.0,0.00019178,2]
[364955678,1749350953264,-480.0,0.00019178,2]
[364955679,1749350953283,-480.0,0.00019178,2]
[364955680,1749350953303,-480.0,0.00019178,2]
[364955681,1749350953324,-494.71703247,0.00019178,2]
[364955682,1749350953345,-480.0,0.00019178,2]
[364955683,1749350953365,-480.0,0.00019178,2]
[364955684,1749350953385,-464.25100897,0.00019178,2]
[364955685,1749350953406,-480.0,0.00019178,2]
[364955686,1749350953428,-974.73,0.00019178,2]
[364955687,1749350953450,-480.0,0.00019178,2]
[364955688,1749350953472,-480.0,0.00019178,2]
[364955689,1749350953495,-480.0,0.00019178,2]
[364955690,1749350953519,-480.0,0.00019178,2]
[364955691,1749350953539,-581.61,0.00019178,2]
[364955692,1749350953561,-480.0,0.00019178,2]
[364955693,1749350953590,-460.0,0.00019178,2]
[364955694,1749350953618,-788.09,0.00019178,2]
[364955695,1749350953641,-81796.72,0.00019178,2]
[364955696,1749350953663,-480.0,0.00019178,2]
[364955697,1749350953685,-480.0,0.00019178,2]
[364955698,1749350953707,-500.0,0.00019341,2]
[364955699,1749350953729,-500.0,0.00019341,2]
[364955700,1749350953750,-500.0,0.00019341,2]
[364955701,1749350953773,-197.05933063,0.00019342,2]
[364955702,1749350953794,-636.22,0.00019342,2]
[364955703,1749350953816,-620.95260281,0.00019342,2]
[364955704,1749350953838,-480.0,0.00019342,2]
[364955705,1749350953860,-5096.33,0.00019342,2]
[364955706,1749350953883,-480.0,0.00019342,2]
[364955707,1749350953904,-516.56452497,0.00019342,2]
[364955708,1749350953927,-480.0,0.00019342,2]
[364955709,1749350953951,-480.0,0.00019342,2]
[364955710,1749350953975,-480.0,0.00019342,2]
[364955711,1749350953996,-480.0,0.00019342,2]
[364955712,1749350954019,-155.526823,0.00019342,2]
[364955713,1749350954046,-480.0,0.00019342,2]
[364955714,1749350954067,-510.61895248,0.00019342,2]
[364955715,1749350954093,-480.0,0.00019342,2]
[364955716,1749350954115,-480.0,0.00019342,2]
[364955718,1749350954136,-480.0,0.00019342,2]
[364955719,1749350954159,-480.0,0.00019342,2]
[364955721,1749350954182,-480.0,0.00019342,2]
[364955723,1749350954203,-480.0,0.00019342,2]
[364955725,1749350954229,-480.0,0.00019342,2]
[364955727,1749350954250,-480.0,0.00019342,2]
[364955729,1749350954270,-474.41889068,0.00019342,2]
[364955730,1749350954291,-480.0,0.00019342,2]
[364955731,1749350954312,-480.0,0.00019342,2]
[364955732,1749350954333,-974.73,0.00019342,2]
[364955733,1749350954354,-480.0,0.00019342,2]
[364955734,1749350954375,-480.0,0.00019342,2]
[364955735,1749350954397,-480.0,0.00019342,2]
[364955736,1749350954418,-480.0,0.00019342,2]
[364955737,1749350954438,-581.61,0.00019342,2]
[364955738,1749350954459,-480.0,0.00019342,2]
[364955739,1749350954480,-788.09,0.00019342,2]
[364955740,1749350954502,-81796.72,0.00019342,2]
[364955741,1749350954525,-772.169187,0.00019342,2]
[364955742,1749350954548,-480.0,0.00019342,2]
[364955743,1749350954571,-480.0,0.00019342,2]
[364955744,1749350954592,-500.0,0.00019505,2]
[364955745,1749350954613,-146.41413099,0.00019506,2]
[364955746,1749350954633,-480.0,0.00019506,2]
[364955747,1749350954655,-563.07082222,0.00019506,2]
[364955748,1749350954676,-480.0,0.00019506,2]
[364955749,1749350954696,-480.0,0.00019506,2]
[364955750,1749350954717,-510.03138743,0.00019506,2]
[364955751,1749350954739,-490.48086919,0.00019506,2]
[364955752,1749350954762,-504.39418177,0.00019506,2]
[364955753,1749350954783,-480.0,0.00019506,2]
[364955754,1749350954804,-480.0,0.00019506,2]
[364955755,1749350954824,-480.0,0.00019506,2]
[364955756,1749350954845,-480.0,0.00019506,2]
[364955757,1749350954866,-480.0,0.00019506,2]
[364955758,1749350954887,-480.0,0.00019506,2]
[364955759,1749350954907,-480.0,0.00019506,2]
[364955760,1749350954928,-480.0,0.00019506,2]
[364955761,1749350954948,-492.11272075,0.00019506,2]
[364955762,1749350954968,-480.0,0.00019506,2]
[364955763,1749350954988,-480.0,0.00019506,2]
[364955764,1749350955009,-480.0,0.00019506,2]
[364955765,1749350955029,-480.0,0.00019506,2]
[364955766,1749350955049,-27.22042315,0.00019506,2]
[364955769,1749350983153,-585.94,0.00018717,2]
[364955770,1749350983174,-480.0,0.00019178,2]
[364955771,1749350983195,-480.0,0.00019178,2]
[364955772,1749350983436,-280.98657367,0.00019178,2]
[364955773,1749350983460,-480.0,0.00019178,2]
[364955774,1749350983482,-480.0,0.00019178,2]
[364955775,1749350983503,-474.53341236,0.00019178,2]
[364955776,1749350983525,-460.0,0.00019178,2]
[364955777,1749350983548,-762.16,0.00019178,2]
[364955778,1749350983573,-480.98,0.00019178,2]
[364955779,1749350983595,-480.0,0.00019178,2]
[364955780,1749350983619,-480.0,0.00019178,2]
[364955781,1749350983640,-492.62,0.00019178,2]
[364955782,1749350983664,-480.0,0.00019178,2]
[364955783,1749350983687,-480.0,0.00019178,2]
[364955784,1749350983709,-543.94,0.00019178,2]
[364955785,1749350983730,-480.0,0.00019178,2]
[364955786,1749350983752,-530.83,0.00019178,2]
[364955787,1749350983773,-480.0,0.00019178,2]
[364955788,1749350983794,-998.96,0.00019178,2]
[364955789,1749350983816,-2513.75,0.00019178,2]
[364955790,1749350983837,-480.0,0.00019178,2]
[364955791,1749350983862,-633.33,0.00019178,2]
[364955792,1749350983884,-480.0,0.00019178,2]
[364955793,1749350983905,-861.00928016,0.00019178,2]
[364955794,1749350983928,-480.0,0.00019178,2]
[364955795,1749350983949,-480.0,0.00019178,2]
[364955796,1749350983971,-480.0,0.00019178,2]
[364955797,1749350983991,-480.0,0.00019178,2]
[364955798,1749350984012,-480.0,0.00019178,2]
[364955799,1749350984034,-480.0,0.00019178,2]
[364955800,1749350984054,-401.24304242,0.00019178,2]
[364955801,1749350984075,-480.0,0.00019178,2]
[364955802,1749350984095,-480.0,0.00019178,2]
[364955803,1749350984116,-480.0,0.00019178,2]
[364955804,1749350984140,-480.0,0.00019178,2]
[364955805,1749350984161,-480.0,0.00019178,2]
[364955806,1749350984184,-764.25,0.00019178,2]
[364955807,1749350984208,-480.0,0.00019178,2]
[364955808,1749350984229,-480.0,0.00019342,2]
[364955809,1749350984249,-480.0,0.00019342,2]
[364955810,1749350984271,-480.0,0.00019342,2]
[364955811,1749350984293,-762.16,0.00019342,2]
[364955812,1749350984316,-480.98,0.00019342,2]
[364955813,1749350984336,-609.18801761,0.00019342,2]
[364955814,1749350984357,-480.0,0.00019342,2]
[364955815,1749350984377,-612.23826697,0.00019342,2]
[364955816,1749350984399,-480.0,0.00019342,2]
[364955817,1749350984421,-480.0,0.00019342,2]